bitfinex-derivatives/quotes_ETHF0:USTF0_20241013
["timestamp","ask_amount","ask_price","bid_price","bid_amount"]
[1728858056803,19.12281238,2475.7,2475.6,25.59011024]
[1728858057102,19.12281238,2475.7,2475.6,17.77011024]
[1728858057604,19.12281238,2475.7,2475.6,15.06211024]
[1728858057805,19.12281238,2475.7,2475.6,14.20318024]
[1728858058412,19.12281238,2475.7,2475.6,13.37157024]
[1728858058413,16.49102,2475.7,2475.6,13.37157024]
[1728858058604,19.18907757,2475.7,2475.6,13.37157024]
[1728858059309,16.49102,2475.7,2475.6,13.37157024]
[1728858059613,18.59514346,2475.7,2475.6,13.37157024]
[1728858060818,18.59514346,2475.7,2475.6,5.55157024]
[1728858061706,16.49102,2475.7,2475.6,5.55157024]
[1728858062810,20.05069198,2475.7,2475.6,5.55157024]
[1728858063216,17.94602,2475.7,2475.6,5.55157024]
[1728858063417,20.05069198,2475.7,2475.6,5.55157024]
[1728858065614,17.94602,2475.7,2475.6,5.55157024]
[1728858066116,20.57781238,2475.7,2475.6,5.55157024]
[1728858066816,20.64407763,2475.7,2475.6,4.73887024]
[1728858067218,18.01228525,2475.7,2475.6,4.73887024]
[1728858067719,20.57812139,2475.7,2475.6,4.73887024]
[1728858067911,20.64438627,2475.7,2475.6,4.73887024]
[1728858068522,18.01228488,2475.7,2475.6,4.73887024]
[1728858068921,18.01228488,2475.7,2475.6,3.62743383]
[1728858069126,0.40414,2475.0,2474.9,0.7944]
[1728858069426,6.45194,2475.0,2474.9,0.7944]
[1728858069625,7.90694,2475.0,2474.9,0.7944]
[1728858070126,4.6628,2475.0,2474.9,0.7944]
[1728858073024,3.2078,2475.3,2475.0,0.40412]
[1728858073227,2.5721,2475.3,2475.2,0.4041]
[1728858073526,1.6538,2475.3,2475.2,0.4041]
[1728858073726,1.6538,2475.3,2475.2,4.4441]
[1728858074123,3.2078,2475.7,2475.4,0.40407]
[1728858074430,2.5722,2475.7,2475.5,2.84]
[1728858074831,2.5722,2475.7,2475.2,2.84]
[1728858075031,5.0973993,2476.1,2475.5,0.40405]
[1728858075032,0.404,2475.9,2475.5,0.40405]
[1728858075430,0.40402,2475.7,2475.3,3.61188]
[1728858075633,1.00994,2476.0,2475.3,3.61188]
[1728858075634,0.40402,2475.8,2475.4,0.40407]
[1728858076828,0.40402,2475.8,2475.3,3.2078]
[1728858077033,0.40403,2475.7,2475.4,0.40407]
[1728858078035,0.40403,2475.7,2475.5,0.40405]
[1728858078230,0.40403,2475.7,2475.3,3.2078]
[1728858078433,2.10597544,2475.9,2475.3,3.2078]
[1728858078631,0.40405,2475.6,2475.3,3.61188]
[1728858079634,0.40405,2475.6,2475.3,3.2078]
[1728858079836,2.10597544,2475.9,2475.3,3.2078]
[1728858080022,6.9274693,2476.0,2475.6,3.2078]
[1728858080023,3.56097544,2476.0,2475.6,3.2078]
[1728858080233,4.57092544,2476.0,2475.6,3.2078]
[1728858080432,0.40402,2475.8,2475.6,3.2078]
[1728858081030,7.41092544,2476.0,2475.6,3.2078]
[1728858081327,0.40402,2475.7,2475.6,3.2078]
[1728858082635,0.40402,2475.7,2475.3,3.2078]
[1728858082636,3.11604544,2475.7,2475.3,3.2078]
[1728858082939,0.40406,2475.5,2475.3,3.2078]
[1728858084838,2.10597544,2475.6,2475.3,3.2078]
[1728858085233,2.10597544,2475.6,2475.3,3.61188]
[1728858086139,2.51001544,2475.6,2475.3,3.61188]
[1728858086340,2.10597544,2475.6,2475.3,3.2078]
[1728858086937,0.40407,2475.4,2475.3,3.2078]
[1728858087739,0.40407,2475.4,2475.0,0.40413]
[1728858087740,2.84,2475.4,2475.0,3.2078]
[1728858087938,4.94597544,2475.4,2475.0,3.2078]
[1728858088142,0.40412,2475.1,2475.0,3.2078]
[1728858088332,0.4041,2475.3,2475.0,3.2078]
[1728858088529,2.51007544,2475.3,2475.0,3.2078]
[1728858089636,2.10597544,2475.3,2475.1,0.40412]
[1728858089836,2.51006544,2475.3,2475.0,3.2078]
[1728858090039,2.51006544,2475.3,2475.0,3.61194]
[1728858090536,2.10597544,2475.2,2474.7,3.2078]
[1728858090738,2.84,2475.0,2474.7,3.2078]
[1728858091034,0.40417,2474.8,2474.7,3.2078]
[1728858091431,2.10597544,2474.8,2474.7,3.2078]
[1728858092138,0.40421,2474.6,2474.4,3.2078]
[1728858092331,0.40419,2474.7,2474.4,3.2078]
[1728858092533,2.51901385,2474.7,2474.4,3.2078]
[1728858093333,2.11482385,2474.7,2474.4,3.61203]
[1728858093646,2.11482385,2474.7,2474.6,0.4042]
[1728858093845,3.0210693,2474.9,2474.6,0.4042]
[1728858093846,2.11482385,2474.8,2474.6,4.445]
[1728858094043,2.11482385,2474.8,2474.6,0.4042]
[1728858094333,2.11482385,2474.8,2474.6,4.0408]
[1728858094542,2.11482385,2474.8,2474.6,4.44499]
[1728858094730,2.11482385,2474.8,2474.7,0.40419]
[1728858095145,2.11482385,2474.8,2474.7,4.44499]
[1728858095533,2.11482385,2474.9,2474.7,4.44499]
[1728858095734,2.11482385,2474.9,2474.7,0.40419]
[1728858096033,2.11482385,2474.9,2474.6,0.40419]
[1728858096234,2.11482385,2474.9,2474.4,6.0478]
[1728858096634,2.11482385,2474.9,2474.8,0.40417]
[1728858096833,2.11482385,2474.9,2474.8,6.40417]
[1728858097135,2.11482385,2475.1,2474.9,0.40415]
[1728858097737,2.11482385,2475.1,2475.0,0.40414]
[1728858097937,2.11482385,2475.2,2475.0,3.61194]
[1728858098634,2.11482385,2475.2,2475.1,0.40412]
[1728858098843,2.11482385,2475.2,2475.1,4.44412]
[1728858099235,2.52502385,2475.3,2475.1,4.44412]
[1728858099433,2.52502385,2475.3,2475.2,0.4041]
[1728858099833,2.52502385,2475.3,2475.1,0.40411]
[1728858100034,2.11482385,2475.2,2475.1,0.40411]
[1728858100241,2.52502385,2475.3,2475.0,3.2078]
[1728858100448,0.4102,2475.3,2475.2,0.4041]
[1728858100843,0.4102,2475.3,2475.0,3.2078]
[1728858101041,0.4102,2475.3,2475.2,0.4041]
[1728858101241,0.4102,2475.3,2475.2,4.4441]
[1728858101833,0.4102,2475.3,2475.2,4.04]
[1728858102040,0.4102,2475.3,2475.2,4.4441]
[1728858102339,0.4102,2475.3,2475.2,4.04]
[1728858102738,0.4102,2475.3,2475.1,0.40411]
[1728858103241,0.4102,2475.3,2475.1,4.44411]
[1728858103434,0.81429,2475.3,2475.1,0.40411]
[1728858104045,0.81429,2475.3,2475.1,4.44411]
[1728858104647,0.4102,2475.3,2475.0,3.2078]
[1728858104845,0.40412,2475.1,2475.0,3.2078]
[1728858105546,0.40417,2474.8,2474.7,3.2078]
[1728858105746,3.24417,2474.8,2474.7,3.2078]
[1728858106147,3.65697,2474.8,2474.7,3.2078]
[1728858107952,0.4042,2474.7,2474.4,3.2078]
[1728858108146,2.51951015,2474.7,2474.4,3.2078]
[1728858108348,2.11531015,2474.6,2474.4,3.2078]
[1728858108545,2.51951015,2474.7,2474.4,3.2078]
[1728858109454,0.40421,2474.6,2474.4,3.2078]
[1728858109654,0.398,2474.5,2474.4,3.2078]
[1728858109854,0.7881,2474.5,2474.4,3.2078]
[1728858110057,1.19232,2474.5,2474.4,3.2078]
[1728858112353,0.7881,2474.5,2474.4,3.2078]
[1728858112555,1.19232,2474.5,2474.4,3.2078]
[1728858112957,4.8297,2474.5,2474.1,3.2078]
[1728858113159,0.40426,2474.3,2474.1,3.2078]
[1728858113350,0.81017,2474.2,2474.1,3.2078]
[1728858114563,0.40429,2474.1,2473.8,3.2078]
[1728858114758,3.2459,2474.2,2473.4,3.2078]
[1728858114759,2.84,2474.0,2473.4,3.2078]
[1728858115056,0.40435,2473.7,2473.4,3.2078]
[1728858115358,0.79017,2473.6,2473.4,3.2078]
[1728858115555,0.4175,2473.5,2473.4,3.2078]
[1728858115758,0.8314,2473.5,2473.4,3.2078]
[1728858116156,0.8314,2473.5,2473.4,3.6122]
[1728858117153,0.3858,2473.6,2473.4,7.251]
[1728858117355,0.3858,2473.6,2473.5,0.40438]
[1728858119057,0.3858,2473.6,2473.5,4.44678]
[1728858119355,0.4175,2473.9,2473.8,0.40433]
[1728858119756,0.4175,2473.9,2473.7,3.2078]
[1728858119961,0.4175,2473.9,2473.7,3.61214]
[1728858120163,0.4175,2473.9,2473.7,3.2078]
[1728858120359,0.40433,2473.8,2473.7,3.2078]
[1728858120561,0.4175,2473.9,2473.7,3.2078]
[1728858120862,0.4175,2473.9,2473.7,3.61214]
[1728858121253,0.4175,2473.9,2473.8,0.40433]
[1728858123059,0.4175,2473.9,2473.7,3.2078]
[1728858123373,0.4175,2473.9,2473.4,3.2078]
[1728858123374,0.40437,2473.6,2473.4,3.2078]
[1728858123667,5.47072,2473.9,2473.4,2.5723]
[1728858123668,3.62978,2473.5,2473.4,2.5723]
[1728858123865,0.40441,2473.4,2473.1,3.2078]
[1728858124062,2.84,2473.3,2473.1,3.2078]
[1728858124472,2.84,2473.3,2472.9,0.40447]
[1728858124770,2.84,2473.1,2472.8,3.2078]
[1728858124955,2.84,2473.1,2472.7,0.4045]
[1728858124956,3.24445,2473.1,2472.7,0.4045]
[1728858125160,0.40446,2473.0,2472.7,0.4045]
[1728858125355,3.24445,2473.1,2472.7,0.4045]
[1728858125559,2.84,2473.1,2472.5,3.2078]
[1728858125764,2.84,2473.3,2473.0,0.40446]
[1728858125956,3.6142,2473.4,2472.8,3.2078]
[1728858126155,4.0186,2473.4,2473.0,0.40445]
[1728858126360,3.6142,2473.4,2473.0,0.40445]
[1728858126655,3.6142,2473.4,2473.1,0.40445]
[1728858126855,0.4064,2473.4,2472.9,0.4202]
[1728858127166,0.4064,2473.4,2473.1,0.40444]
[1728858129071,2.84,2473.3,2473.1,0.40444]
[1728858129464,2.84,2473.3,2472.9,0.4202]
[1728858130069,2.84,2473.3,2473.1,0.40444]
[1728858130265,2.84,2473.3,2472.9,0.4202]
[1728858130266,2.84,2473.3,2473.2,0.40443]
[1728858130471,0.4064,2473.4,2473.2,0.40443]
[1728858130665,0.3854,2473.5,2472.9,0.4202]
[1728858130876,0.3854,2473.5,2473.4,0.4044]
[1728858132172,3.2078,2473.8,2473.7,0.40435]
[1728858132364,2.84,2474.0,2473.5,0.4063]
[1728858132365,0.8124,2474.0,2473.5,0.4063]
[1728858132566,0.8124,2474.0,2473.8,0.40432]
[1728858133067,0.8124,2474.0,2473.9,0.40432]
[1728858133277,4.5998,2474.4,2473.5,0.4063]
[1728858133278,6.0478,2474.4,2474.1,0.40428]
[1728858133465,0.8124,2474.4,2473.8,4.21861]
[1728858133671,0.8124,2474.4,2473.8,3.2078]
[1728858133967,0.8124,2474.4,2474.1,0.40427]
[1728858134170,3.6524,2474.4,2473.8,3.2078]
[1728858134479,4.05664,2474.4,2474.0,0.4043]
[1728858134972,4.05664,2474.4,2473.8,3.2078]
[1728858134973,3.6524,2474.4,2474.1,0.40428]
[1728858135171,4.05664,2474.4,2474.0,0.40429]
[1728858136075,3.6524,2474.4,2474.1,0.40428]
[1728858136277,3.6524,2474.4,2474.1,3.61208]
[1728858137077,4.05663,2474.4,2474.1,3.61208]
[1728858137386,4.05663,2474.4,2474.1,3.2078]
[1728858137675,3.6524,2474.4,2474.1,3.2078]
[1728858137982,3.6524,2474.4,2474.1,3.61208]
[1728858138875,3.6524,2474.4,2474.1,3.2078]
[1728858139271,3.6524,2474.4,2474.1,3.61208]
[1728858140974,3.6524,2474.4,2474.1,3.2078]
[1728858141273,0.8124,2474.4,2474.1,3.2078]
[1728858141474,0.8124,2474.4,2474.2,0.40426]
[1728858141680,0.8124,2474.4,2474.1,3.61207]
[1728858141870,0.8124,2474.4,2474.1,0.40427]
[1728858142070,0.8124,2474.4,2474.2,0.40426]
[1728858142875,0.8124,2474.4,2474.1,0.40428]
[1728858143377,1.21664,2474.4,2474.1,0.40428]
[1728858143770,1.21664,2474.4,2473.8,3.2078]
[1728858143771,0.40426,2474.3,2474.0,0.4043]
[1728858144078,4.05664,2474.4,2474.1,0.40428]
[1728858144773,3.6524,2474.4,2474.2,0.40426]
[1728858145074,3.6524,2474.4,2473.8,3.2078]
[1728858145270,3.6524,2474.4,2474.1,0.40428]
[1728858145271,4.05665,2474.4,2474.1,0.40428]
[1728858147076,3.6524,2474.4,2474.2,0.40426]
[1728858147279,4.05664,2474.4,2474.2,0.40426]
[1728858147478,4.05664,2474.4,2474.1,0.40428]
[1728858147886,4.05664,2474.4,2474.2,0.40427]
[1728858148972,4.05664,2474.4,2474.1,0.40428]
[1728858150491,4.05664,2474.4,2473.8,3.2078]
[1728858150492,3.6524,2474.4,2473.8,3.2078]
[1728858150782,4.05664,2474.4,2474.1,0.40427]
[1728858151582,3.6524,2474.4,2474.1,0.40427]
[1728858151878,3.6524,2474.4,2474.0,0.40429]
[1728858151879,0.40426,2474.3,2474.0,0.40429]
[1728858152072,0.40426,2474.3,2473.8,3.2078]
[1728858152271,0.40426,2474.3,2474.1,0.40428]
[1728858152477,3.6524,2474.4,2473.8,3.2078]
[1728858152778,0.40426,2474.3,2474.1,0.40428]
[1728858154185,4.05664,2474.4,2474.2,0.40426]
[1728858154777,4.05664,2474.4,2473.8,4.21862]
[1728858154984,4.05664,2474.4,2474.2,0.40426]
[1728858155183,3.6524,2474.4,2473.8,4.21862]
[1728858155580,4.05665,2474.4,2473.8,4.21862]
[1728858155980,4.05665,2474.4,2474.2,0.40427]
[1728858156377,0.40426,2474.3,2474.1,0.40428]
[1728858156583,0.40426,2474.3,2473.8,4.21862]
[1728858156584,4.05664,2474.4,2474.2,0.40427]
[1728858157286,4.0416,2474.3,2473.8,3.2078]
[1728858157484,4.0416,2474.3,2473.8,3.61212]
[1728858157485,2.84,2473.9,2473.8,3.61212]
[1728858158285,0.784,2474.0,2473.8,3.2078]
[1728858158577,0.3914,2474.0,2473.9,0.40432]
[1728858161388,0.3914,2474.0,2473.9,4.44672]
[1728858161693,0.3914,2474.0,2473.9,0.40432]
[1728858163784,2.84,2474.2,2473.9,4.0424]
[1728858163990,0.3867,2474.3,2473.8,3.2078]
[1728858164180,2.84,2474.2,2474.1,0.40428]
[1728858165191,2.84,2474.2,2473.8,3.2078]
[1728858165391,2.84,2474.2,2474.0,0.40429]
[1728858165588,3.24427,2474.2,2474.0,0.40429]
[1728858165791,2.84,2474.2,2473.8,3.2078]
[1728858165987,2.84,2474.0,2473.5,3.2078]
[1728858166188,0.40437,2473.6,2473.5,3.2078]
[1728858166391,3.24436,2473.7,2473.5,3.2078]
[1728858166694,0.79907,2473.6,2473.5,3.2078]
[1728858168192,0.3947,2473.6,2473.5,3.2078]
[1728858168589,0.3947,2473.6,2473.5,3.61218]
[1728858168791,0.3947,2473.6,2473.5,3.2078]
[1728858170693,0.3947,2473.6,2473.2,3.2078]
[1728858170997,3.66049,2473.5,2473.2,0.40443]
[1728858171193,0.404,2473.4,2473.2,0.40443]
[1728858171392,0.404,2473.4,2472.9,3.2078]
[1728858171592,0.8084,2473.4,2473.1,0.40444]
[1728858172093,2.84,2473.2,2472.9,3.61227]
[1728858172295,2.84,2473.2,2473.0,0.40445]
[1728858172503,0.3922,2473.1,2473.0,0.40445]
[1728858173598,0.3922,2473.1,2472.9,3.2078]
[1728858173789,0.8098,2473.1,2472.9,3.2078]
[1728858173999,0.8098,2473.1,2473.0,0.40446]
[1728858174193,4.05425,2473.1,2472.9,3.61227]
[1728858174498,3.6498,2473.1,2472.9,3.2078]
[1728858175295,3.6498,2473.1,2473.0,0.40446]
[1728858175502,3.6498,2473.1,2472.9,3.61227]
[1728858176504,3.6498,2473.1,2473.0,0.40446]
[1728858176701,2.50863114,2473.3,2473.0,0.40446]
[1728858176893,2.10421114,2473.3,2473.2,0.40443]
[1728858177098,3.6593,2473.4,2473.2,0.40443]
[1728858177099,5.76351114,2473.4,2473.2,0.40443]
[1728858177600,5.76351114,2473.4,2473.3,0.40441]
[1728858177995,3.6593,2473.4,2473.2,0.40442]
[1728858178798,5.76351114,2473.4,2473.2,0.40442]
[1728858179007,3.6593,2473.4,2473.2,0.40442]
[1728858179401,0.8193,2473.4,2473.3,0.40441]
[1728858179599,0.4153,2473.4,2473.3,0.40441]
[1728858179795,2.10421114,2473.6,2473.5,0.40438]
[1728858179998,2.88461114,2473.7,2473.5,0.40438]
[1728858180803,2.88461114,2473.7,2473.3,0.4215]
[1728858181009,2.88461114,2473.7,2473.4,0.40438]
[1728858181706,2.88461114,2473.7,2473.3,0.4215]
[1728858182210,2.84,2473.6,2473.3,0.4215]
[1728858182508,2.84,2473.6,2473.4,0.40439]
[1728858182808,3.28896114,2473.7,2473.4,0.40439]
[1728858183206,0.7804,2473.7,2473.5,0.40437]
[1728858183400,1.18475,2473.7,2473.4,0.40439]
[1728858183711,2.84,2473.6,2473.4,0.40439]
[1728858184403,2.84,2473.6,2473.5,0.40438]
[1728858184610,0.7804,2473.7,2473.6,0.40437]
[1728858184911,2.10421114,2473.9,2473.8,0.40433]
[1728858185105,9.58326392,2474.1,2473.5,3.6091]
[1728858185106,2.93011114,2474.1,2473.5,3.6091]
[1728858185406,6.17440114,2474.1,2473.8,0.40433]
[1728858185603,4.07019,2474.1,2473.8,0.40433]
[1728858185798,0.8259,2474.1,2474.0,0.4043]
[1728858186119,0.8259,2474.1,2473.6,1.01092]
[1728858186120,2.84,2474.3,2474.1,0.40428]
[1728858186409,0.8221,2474.2,2474.1,0.40428]
[1728858186804,0.4073,2474.2,2474.1,0.40428]
[1728858187111,8.49447392,2474.6,2474.1,13.2494]
[1728858187112,2.10421114,2474.6,2474.1,13.2494]
[1728858187308,2.10421114,2474.7,2474.1,3.2078]
[1728858187606,2.96291114,2474.8,2474.1,4.60819]
[1728858187813,2.96291114,2474.8,2474.4,3.2078]
[1728858188205,2.96291114,2474.8,2474.5,0.40421]
[1728858189007,0.8587,2474.8,2474.5,0.40421]
[1728858189315,1.26287,2474.8,2474.4,3.61202]
[1728858189509,0.8587,2474.8,2474.5,0.40422]
[1728858190309,0.8587,2474.8,2474.6,0.4042]
[1728858190523,0.8587,2474.8,2474.4,3.2078]
[1728858190813,4.94421114,2475.1,2474.7,3.2078]
[1728858191015,0.8563,2475.2,2475.1,0.40412]
[1728858191214,0.8563,2475.2,2474.9,0.40415]
[1728858191610,0.8563,2475.2,2474.8,0.40416]
[1728858191914,0.8563,2475.2,2474.6,3.6284]
[1728858191915,2.84,2475.1,2474.7,0.40417]
[1728858192311,2.84,2475.1,2474.8,0.40416]
[1728858192514,3.24413,2475.1,2474.8,0.40416]
[1728858192914,0.40414,2475.0,2474.7,0.40417]
[1728858193210,3.24413,2475.1,2474.8,0.40416]
[1728858193409,3.24413,2475.1,2474.9,3.2078]
[1728858193410,2.84,2475.1,2474.9,3.2078]
[1728858193608,0.40415,2475.0,2474.9,3.2078]
[1728858195809,0.40417,2474.9,2474.6,0.40419]
[1728858196005,0.40414,2475.0,2474.6,0.40419]
[1728858196209,0.40417,2474.9,2474.6,0.40419]
[1728858198022,0.4101,2474.8,2474.6,0.40419]
[1728858198218,0.4101,2474.8,2474.7,0.40419]
[1728858198423,0.4101,2474.8,2474.5,0.3859]
[1728858198424,0.4101,2474.8,2474.4,3.2078]
[1728858198610,0.4101,2474.8,2474.4,3.61203]
[1728858198611,0.78619,2474.7,2474.4,3.61203]
[1728858199215,0.4042,2474.6,2474.4,3.61203]
[1728858200026,0.382,2474.7,2474.4,3.61203]
[1728858200216,0.7862,2474.7,2474.4,3.2078]
[1728858200413,0.4042,2474.6,2474.4,3.61202]
[1728858200617,0.7862,2474.7,2474.4,3.61202]
[1728858201313,0.7862,2474.7,2474.5,0.40422]
[1728858201518,0.78619,2474.7,2474.5,0.40421]
[1728858201820,0.78619,2474.7,2474.6,0.4042]
[1728858201821,0.382,2474.7,2474.6,0.4042]
[1728858202516,0.382,2474.7,2474.5,0.40421]
[1728858203021,0.4101,2474.8,2474.5,4.0408]
[1728858203320,0.4101,2474.8,2474.6,0.40419]
[1728858203717,0.4101,2474.8,2474.7,0.40419]
[1728858205538,0.4201,2475.1,2474.5,3.2078]
[1728858205728,0.4201,2475.1,2474.6,4.23661]
[1728858205912,0.4201,2475.1,2475.0,0.40414]
[1728858207725,0.4201,2475.1,2474.9,3.2078]
[1728858207916,0.4201,2475.1,2474.9,3.61195]
[1728858208826,0.82423,2475.1,2474.9,3.2078]
[1728858209423,0.4201,2475.1,2474.9,3.61194]
[1728858210030,0.82423,2475.1,2474.9,3.2078]
[1728858210426,0.82423,2475.1,2474.9,3.61195]
[1728858210626,0.4201,2475.1,2474.9,3.61195]
[1728858211530,0.82422,2475.1,2474.9,3.61195]
[1728858212424,6.8808,2475.0,2474.5,3.2078]
[1728858212631,1.04417,2474.9,2474.7,0.40418]
[1728858213527,0.40417,2474.8,2474.7,0.40418]
[1728858215732,0.64,2474.9,2474.5,3.2078]
[1728858216122,0.64,2474.9,2474.7,0.40418]
[1728858216123,0.40418,2474.8,2474.7,0.40418]
[1728858216527,0.64,2474.9,2474.5,3.2078]
[1728858216729,0.40417,2474.8,2474.7,0.40417]
[1728858220230,0.64,2474.9,2474.5,3.2078]
[1728858220634,0.40417,2474.8,2474.7,0.40417]
[1728858222338,1.04416,2474.9,2474.8,0.40417]
[1728858223026,0.64,2474.9,2474.8,0.40417]
[1728858226731,0.64,2474.9,2474.7,3.2078]
[1728858226732,0.40417,2474.8,2474.7,3.2078]
[1728858227943,3.24417,2474.8,2474.7,3.2078]
[1728858228139,0.40422,2474.5,2474.4,3.2078]
[1728858228537,0.40422,2474.6,2474.4,3.61203]
[1728858228835,1.02932,2474.6,2474.4,3.61203]
[1728858229036,0.6024,2474.5,2474.4,3.61203]
[1728858229433,0.6024,2474.5,2474.4,3.2078]
[1728858229745,0.6024,2474.5,2474.4,3.61203]
[1728858231442,0.6024,2474.5,2474.4,3.73842545]
[1728858232333,0.6251,2474.6,2474.4,3.33419545]
[1728858232540,2.10421114,2474.7,2474.4,3.2078]
[1728858232849,2.10421114,2474.7,2474.6,0.4042]
[1728858233335,2.10421114,2474.8,2474.7,0.40419]
[1728858233534,2.63026392,2474.9,2474.8,0.40417]
[1728858233535,2.10421114,2474.9,2474.8,0.40417]
[1728858236845,2.10421114,2474.9,2474.8,0.53054477]
[1728858237242,2.10421114,2474.9,2474.8,0.40417]
[1728858237446,2.10421114,2474.9,2474.8,0.53054522]
[1728858237945,2.10421114,2475.0,2474.9,0.40415]
[1728858238142,2.10421114,2475.0,2474.9,0.53052522]
[1728858240741,2.10421114,2475.0,2474.9,0.53051971]
[1728858243647,2.10421114,2475.0,2474.9,0.53051525]
[1728858244355,2.10421114,2475.0,2474.9,0.12636525]
[1728858244356,2.50835114,2475.0,2474.9,0.12636525]
[1728858244558,0.40417,2474.8,2474.7,3.61199]
[1728858244756,4.0408,2475.0,2474.8,0.40417]
[1728858244757,2.63026392,2475.0,2474.8,0.40417]
[1728858245054,2.63026392,2475.0,2474.7,3.3341804]
[1728858245055,0.40416,2474.9,2474.7,3.61197]
[1728858245348,2.523787,2474.8,2474.7,3.61197]
[1728858245557,3.145487,2474.8,2474.7,3.73835433]
[1728858246153,3.145487,2474.8,2474.7,3.33418433]
[1728858246550,1.02587,2474.8,2474.7,3.2078]
[1728858246854,1.61967,2474.8,2474.7,3.2078]
[1728858247362,4.24993392,2474.8,2474.7,3.2078]
[1728858247659,1.61967,2474.8,2474.7,3.2078]
[1728858248043,1.61967,2474.8,2474.7,0.40419]
[1728858248253,1.61967,2474.8,2474.6,3.2078]
[1728858248450,1.61967,2474.8,2474.7,0.40419]
[1728858248654,4.24993392,2474.8,2474.6,3.61199]
[1728858248955,2.11995575,2474.7,2474.6,3.61199]
[1728858249158,2.11995575,2474.7,2474.6,3.73837813]
[1728858249460,3.13074575,2474.7,2474.6,3.33418813]
[1728858249656,3.13074575,2474.7,2474.6,3.2078]
[1728858249657,6.48105392,2474.7,2474.6,3.2078]
[1728858253262,6.48105392,2474.7,2474.2,1.0480488]
[1728858253263,1.01051,2474.6,2474.2,4.2558488]
[1728858253568,4.95984314,2474.4,2473.9,1.0480488]
[1728858253861,4.95984314,2474.4,2473.8,3.61213]
[1728858253862,0.40431,2474.0,2473.8,3.61213]
[1728858254158,1.2053,2473.9,2473.8,3.61213]
[1728858254362,1.2053,2473.9,2473.8,3.7385573]
[1728858254567,1.2053,2473.9,2473.8,3.61213]
[1728858254855,1.2053,2473.9,2473.8,3.73855696]
[1728858256369,1.2053,2473.9,2473.8,3.61213]
[1728858256952,1.2053,2473.9,2473.8,3.73855301]
[1728858257258,1.2053,2473.9,2473.8,3.61213]
[1728858259255,1.60962,2473.9,2473.8,3.61213]
[1728858259866,1.2053,2473.9,2473.8,3.61213]
[1728858260763,1.60962,2473.9,2473.8,3.61213]
[1728858261163,1.2053,2473.9,2473.8,3.61213]
[1728858263658,1.60962,2473.9,2473.8,3.61213]
[1728858264061,1.2053,2473.9,2473.8,3.61213]
[1728858265360,1.2053,2473.9,2473.8,3.2078]
[1728858265569,8.49202,2473.9,2473.8,3.2078]
[1728858265769,0.40438,2473.6,2473.5,0.40438]
[1728858266269,0.40438,2473.6,2473.4,0.40438]
[1728858266470,0.5972,2473.5,2473.4,0.4044]
[1728858272163,1.00158,2473.5,2473.4,0.4044]
[1728858272569,1.00158,2473.5,2473.3,3.2078]
[1728858272570,0.4044,2473.4,2473.3,3.61221]
[1728858272766,0.4044,2473.4,2473.3,3.2078]
[1728858272767,1.0455,2473.4,2473.3,3.2078]
[1728858273168,1.0455,2473.4,2473.2,0.40442]
[1728858273568,0.40441,2473.3,2473.2,0.40442]
[1728858273871,0.40441,2473.3,2473.2,3.61222]
[1728858275269,0.6411,2473.4,2473.3,0.40441]
[1728858276272,0.5972,2473.5,2473.4,0.4044]
[1728858276472,0.40437,2473.6,2473.2,3.2078]
[1728858276473,0.40437,2473.6,2473.5,0.40438]
[1728858276775,1.65736,2473.7,2473.5,0.40438]
[1728858278275,1.253,2473.7,2473.6,0.40437]
[1728858280874,1.253,2473.7,2473.4,1.3071]
[1728858281269,1.253,2473.7,2473.6,0.40437]
[1728858282075,1.65735,2473.7,2473.5,0.40437]
[1728858282276,0.40437,2473.6,2473.4,0.40439]
[1728858282463,1.253,2473.7,2473.2,3.2078]
[1728858282464,1.65735,2473.7,2473.5,0.40437]
[1728858283783,1.65735,2473.7,2473.2,3.2078]
[1728858284170,1.65735,2473.7,2473.5,0.40437]
[1728858285476,1.253,2473.7,2473.2,3.2078]
[1728858285675,1.253,2473.7,2473.5,0.40437]
[1728858285882,1.65736,2473.7,2473.5,0.40437]
[1728858287778,1.31,2473.6,2473.5,0.40437]
[1728858291379,1.31,2473.6,2473.4,2.5674]
[1728858291581,1.31,2473.6,2473.5,0.40437]
[1728858293972,1.71437,2473.6,2473.4,1.06128]
[1728858294168,1.31,2473.6,2473.4,0.6569]
[1728858294378,1.31,2473.6,2473.5,0.40438]
[1728858294682,1.31,2473.6,2473.2,5.1414]
[1728858294683,1.31,2473.6,2473.2,5.7774]
[1728858294880,1.71437,2473.6,2473.5,0.40438]
[1728858295076,1.31,2473.6,2473.5,0.40438]
[1728858295282,1.71437,2473.6,2473.4,0.40439]
[1728858295783,1.31,2473.6,2473.5,0.40438]
[1728858296282,1.71437,2473.6,2473.4,0.40439]
[1728858296873,1.71437,2473.6,2473.2,5.7774]
[1728858297070,1.31,2473.3,2473.2,3.61223]
[1728858297275,1.71441,2473.3,2473.2,3.2078]
[1728858297482,3.59311,2473.3,2473.2,3.2078]
[1728858298576,0.40445,2473.1,2472.9,0.40447]
[1728858298772,1.31,2473.0,2472.9,0.40447]
[1728858299782,1.31,2473.1,2472.9,1.31]
[1728858299974,2.11984314,2473.2,2473.1,0.40445]
[1728858300177,2.11984314,2473.4,2473.2,0.40443]
[1728858300383,2.11984314,2473.4,2473.3,1.71441]
[1728858300576,2.11984314,2473.4,2473.3,0.40441]
[1728858300778,3.42984314,2473.4,2473.3,0.40441]
[1728858301181,2.11984314,2473.4,2473.3,1.71441]
[1728858301675,4.36771314,2473.6,2473.4,0.4044]